{"text_format":"1","workbook":"xlsx","n_sheets":9,"sheets":["Атестационна карта","1-а. Научна продукция","1-б. Цитирания","2. Научен капацитет и ...","3. Общ. и иконом. въздействие","Дейности 3.4 - 3.15","II. Специфични критерии","1 г. Уч. пособия и упр. 6","Дейности в директна полза на ИР"],"not_rendered":{"charts":0,"images":0,"macros":1,"external_links":0,"defined_names":0,"comments":0,"pivot_tables":0},"unopened":[],"bounds":{"document_bytes":16777216,"sheet_cells":100000,"rows_first":2000,"rows_last":500,"rows_between":2000,"halvings":0,"cell_chars":16384,"cell_head_chars":4096},"cells_cut":0,"cells_raw":0,"read":"whole","date_system":"1900"}

{"sheet":"Атестационна карта","index":0,"n_rows":103,"n_cols":6,"rows_kept":103,"cut":false,"hidden":false,"merged":[[82,1,82,3],[4,2,4,3],[28,0,28,3],[32,0,32,3],[40,0,40,2],[36,0,36,3],[25,1,25,3],[18,0,18,3],[11,1,11,3],[75,1,75,3],[70,0,70,3],[71,0,71,3],[69,0,69,3],[59,0,59,3],[60,0,60,3],[61,0,61,3],[0,0,0,5],[1,0,1,5],[5,0,5,1],[5,2,5,3],[9,0,9,3],[6,0,6,1],[7,0,7,3],[8,0,8,3],[4,0,4,1],[3,0,3,1],[2,0,2,1],[2,2,2,3],[3,2,3,3],[102,0,102,1],[90,0,97,0],[98,0,100,0],[101,0,101,1],[86,0,86,3],[88,0,88,3],[89,1,89,3],[90,1,90,3],[98,1,98,3],[41,0,41,3],[56,0,56,3],[57,0,57,3],[58,0,58,3],[68,0,68,3],[62,0,62,3],[63,0,63,3],[64,0,64,3],[65,0,65,3],[67,0,67,3]]}
["Общи положения: Общи положения:\n1. Атестират се всички учени, които са на постоянен трудов договор в звеното.\n2. Периодът на атестацията обхваща 3 години като честотата на атестирането се определя от НС на звеното (предложение на комисията на ИР-БАН: честотата на атестиране да бъде 3 години).\n3. Въвежда се коригиращ коефициент за времето на назначението.\n\n"]
["Атестационна карта за периодична оценка на служителите от ИР-БАН                                                                         в съответствие с Чл. 58 от Устава на БАН и Базистната атестационна карта приета от ОС на БАН на 09.11.2020 г., актуализирана с решение на НС на ИР-БАН  от 13.10.2021г. Протокол № 6, т. 8"]
["Име",null,"………….",null,"Общ брой точки за атестация",{"$f":"SUM(F10:F89)","v":0}]
["Академична длъжност и научна степен",null,"………….."]
["Стуктурно звено",null,"……………."]
["Период на атестиране",null,"2022-2024 "]
["Показатели за оценка",null,"Оценъчни точки ","Т. от атестация по съответните критерии\n\n"]
["I.    БАЗИСНИ  КРИТЕРИИ"]
["1. НАУЧНИ РЕЗУЛТАТИ ПРЕЗ ОТЧЕТНИЯ ПЕРИОД"]
["1-a. НАУЧНА ПРОДУКЦИЯ ",null,null,null,"Общ брой точки за 1-а.",{"$f":"SUM(D11:D28)","v":0}]
["1.1","Брой научни публикации в издания, включени в ERIH PLUS, Scopus или Web of Science (Core Collection)",1,{"$f":"SUM('1-а. Научна продукция'!D3:D6)","v":0}]
["1.2","Бонус точки за статии в списания, индексирани от Web of Science (Core Collection) и SCOPUS които:"]
["1.2.1","  - оглавяват ранглистата в съответната научна област (първите две за интердисциплинарни науки) ",20,{"$f":"SUM('1-а. Научна продукция'!D9:D12)","v":0}]
["1.2.2","  - попадат в категория Q1 (първата четвърт)",16,{"$f":"SUM('1-а. Научна продукция'!D14:D17)","v":0}]
["1.2.3","  - попадат в категория Q2 (втората четвърт)",8,{"$f":"SUM('1-а. Научна продукция'!D19:D22)","v":0}]
["1.2.4","  - попадат в категория Q3 (третата четвърт)",4,{"$f":"SUM('1-а. Научна продукция'!D24:D27)","v":0}]
["1.2.5","  - попадат в категория Q4 (последната четвърт)",2,{"$f":"SUM('1-а. Научна продукция'!D29:D32)","v":0}]
["1.2.6","  - списания със SJR ранг в Scopus, но не попадащи в Q категория ",1,{"$f":"SUM('1-а. Научна продукция'!D34:D37)","v":0}]
["Взима се по-високата категория от двете бази данни."]
["1.3","Брой реферирани научни публикации в списания, които не са включени в ERIH PLUS, Scopus или Web of Knowledge, тематични сборници, вкл. сборници отнационални и международни научни форуми.",0.2,{"$f":"SUM('1-а. Научна продукция'!D39:D42)","v":0}]
["1.3.1","Бонус точки за публикации в рецензирани тематични сборници, които са издадени от национални академични издателства ",0.2,{"$f":"SUM('1-а. Научна продукция'!D44:D47)","v":0}]
["1.3.2","Бонус точки за публикации в рецензирани тематични сборници, които  са издадени от международни академични издателства ",0.4,{"$f":"SUM('1-а. Научна продукция'!D49:D52)","v":0}]
["1.4","Брой научни монографии",8,{"$f":"SUM('1-а. Научна продукция'!D54:D57)","v":0}]
["1.4а","Бонус точки за монографии, издадени от реномирани международни издателства",6,{"$f":"SUM('1-а. Научна продукция'!D59:D62)","v":0}]
["1.4б","Бонус точки за монографии с национално значение",3,{"$f":"SUM('1-а. Научна продукция'!D64:D67)","v":0}]
["1.5","Брой патенти и полезни модели със заявители институтите на БАН:"]
["1.5.1","полезен модел ",4,{"$f":"SUM('1-а. Научна продукция'!D70:D73)","v":0}]
["1.5.2","за регистрирани патенти с патентопритежател (собственик) институтите на БАН",8,{"$f":"SUM('1-а. Научна продукция'!D75:D78)","v":0}]
["1.6. Цитирания",null,null,null,"Общ брой точки за 1.6.",{"$f":"SUM(D30:D32)","v":0}]
["1.7","Брой независими цитирания в Scopus или Web of Science (Core Collection).",0.3,{"$f":"SUM('1-б. Цитирания'!D3:D6)","v":0}]
["1.7.1","Брой други доказани независими цитирания в научни издания",0.2,{"$f":"SUM('1-б. Цитирания'!D8:D11)","v":0}]
["1.7.2","Брой доказани независими цитирания в дисертации.",0.1,{"$f":"SUM('1-б. Цитирания'!D13:D16)","v":0}]
["2. НАУЧЕН КАПАЦИТЕТ И ВЪЗПРОИЗВОДСТВО НА АКАДЕМИЧНАТА ОБЩНОСТ",null,null,null,"общ брой точки за 2.",{"$f":"SUM(D34:D36)","v":0}]
["2.1","Научен ръководител или научен консултант на защитил докторант ",20,{"$f":"SUM('2. Научен капацитет и ...'!F3:F6)","v":0}]
["2.2","Придобиване на    образователната и научна степен „доктор”",20,{"$f":"SUM('2. Научен капацитет и ...'!F8:F11)","v":0}]
["2.3","Придобиване на научната степен „доктор на науките”",50,{"$f":"SUM('2. Научен капацитет и ...'!F13:F16)","v":0}]
["3. ОБЩЕСТВЕНО И ИКОНОМИЧЕСКО ВЪЗДЕЙСТВИЕ ПРЕЗ ОТЧЕТНИЯ ПЕРИОД",null,null,null,"Общ брой точки за 3.",{"$f":"SUM(D38:D40)","v":0}]
["3.1","Дялово разпределение на получени средства от външни източници по международни научни проекти на конкурсен принцип (РП на ЕС, НАТО,ЮНЕСКО и др.)",3,{"$f":"SUM(Таблица53[[#All],[Общо т. за проект]])","v":0}]
["3.2","Дялово разпределение на получени средства от външни източници по научни проекти на конкурсен принцип от страната (ФНИ, НПКНИ, оперативни програми и др.)",2,{"$f":"SUM(Таблица51[[#All],[Общо т. за проект]])","v":0}]
["3.3","Дялово разпределение на получени средства от други източници, които не са стопанска дейност",1,{"$f":"SUM(Таблица52[[#All],[Общо т. за проект]])","v":0}]
["За т. 3.1,3.2. и 3.3. НС на звеното определя механизъм за отчитане на трансферите и дяловото им разпрделение."]
["ДЕЙНОСТИ В ДИРЕКТНА ПОЛЗА НА ИНСТИТУЦИИ И ОРГАНИ НА ОБЩИНИТЕ, ДЪРЖАВАТА И ЕС",null,null,null,"Общ брой точки за 3.4 - 3.15",{"$f":"SUM(D43:D56)","v":0}]
["3.4","Участие в изпълнението на важни научни проекти4, целево финансирани от държавата към бюджетната субсидия.",5,{"$f":"SUM(Таблица35[[#All],[Точки]])","v":0}]
["3.5","Участие в изготвяне на национални документи от стратегическо значение.",2,{"$f":"SUM(Таблица36[[#All],[Точки]])","v":0}]
["3.6","Организиране на международни научни форуми.",5,{"$f":"SUM(Таблица37[[#All],[Точки]])","v":0}]
["3.7","Организиране на национални научни форуми, вкл. с международно участие.",2.5,{"$f":"SUM(Таблица38[[#All],[Точки]])","v":0}]
["3.8","Организиране на изложби в чужбина ",20,{"$f":"SUM(Таблица39[[#All],[Точки]])","v":0}]
["3.8.1","Организиране на изложби в страната ",10,{"$f":"SUM(Таблица40[[#All],[Точки]])","v":0}]
["3.8.2","Организиране на ателиета и творчески работилници",8,{"$f":"SUM(Таблица41[[#All],[Точки]])","v":0}]
["3.9","Участие в органи на управление на БАН",10,{"$f":"SUM(Таблица42[[#All],[Точки]])","v":0}]
["3.10","Експертни доклади по писмена заявка от международни институции и органи (ЕС, ЮНЕСКО и др.), които не се заплащат.",10,{"$f":"SUM(Таблица43[[#All],[Точки]])","v":0}]
["3.11","Експертни доклади по писмена заявка от държавни и общински институции и органи, които не се заплащат.",2,{"$f":"SUM(Таблица44[[#All],[Точки]])","v":0}]
["3.12","Експертни становища за изпълнителната, законодателната, съдебната и местна власт, които не се заплащат.",1,{"$f":"SUM(Таблица45[[#All],[Точки]])","v":0}]
["3.13","Изработване на уникални апарати за участие в международни програми, които не са икономическа дейност.",10,{"$f":"SUM(Таблица46[[#All],[Точки]])","v":0}]
["3.14","Образователни курсове и семинари (не по-малко от 30 уч. часа), които са организирани от институтите на БАН.",5,{"$f":"SUM(Таблица47[[#All],[Точки]])","v":0}]
["3.15","  Публични  лекции  и  медийни  изяви  на  учения  в  качеството  му  на  експерт  в научната област на съответния институт. ",1,{"$f":"SUM(Таблица48[[#All],[Точки]])","v":0}]
["Допълнителни бележки:"]
["1 „Монография” (в това число речници и енциклопедии, равни по обем и научна стойност на монография) е публикувано"]
["научно издание, което отговаря на т. 10 от §1 на Допълнителните разпоредби към ЗРАСРБ, както и на т. 5 от Забележките"]
["към Правилника на МС за прилагане на ЗРАСРБ."]
["2 По изготвен списък от Съвета за издателска дейност към УС на БАН."]
["3  Монографии,  които  не  са  премирани  по  т.  1.6а  се  определят  с  конкретно  предложение  от  научните  съвети  на"]
["институтите и се одобряват от Съвета за издателска дейност към УС на БАН."]
["4 С бюджет над сума, която се определя от всяко самостоятелно звено в съответствие със спецификата му."]
["5 Минимум 30 участника."]
["6 Материали, за които е предвидено финансиране по служебен път не се премират с бонус точки."]
[]
["II.        СПЕЦИФИЧНИ КРИТЕРИИ"]
["Приемат се с решение на НС на звено                                         "]
["Предложение на комисията на ИР-БАН"]
["в Атестационната карта на ИР-БАН да бъдат включени следните специфични критерии:"]
["1 в. РЕЦЕНЗИИ на 6:",null,null,null,"Общ брой точки за 1 в.",{"$f":"SUM(D73:D86)","v":0}]
["1.9","Монографии",0.8,{"$f":"SUM(Таблица23[[#All],[Точки]])","v":0}]
["1.9a","Бонус точки за монографии, издадени от реномирани международни издателства",0.6,{"$f":"SUM(Таблица246[[#All],[Точки]])","v":0}]
["1.9б","Бонус точки за монографии с национално значение",0.3,{"$f":"SUM(Таблица24[[#All],[Точки]])","v":0}]
["1.11","Статии в списания, изброени в т.1.2"]
["1.11.1","Оглавяват ранглистата в съответната научна област (първите две за интердисциплинарни науки) ",2,{"$f":"SUM(Таблица25[Точки])","v":0}]
["1.11.2","  Попадат в категория Q1 (първата четвърт)",1.6,{"$f":"SUM(Таблица26[[#All],[Точки]])","v":0}]
["1.11.3","  Попадат в категория Q2 (втората четвърт)",0.8,{"$f":"SUM(Таблица27[[#All],[Точки]])","v":0}]
["1.11.4","  Попадат в категория Q3 (третата четвърт)",0.4,{"$f":"SUM(Таблица28[[#All],[Точки]])","v":0}]
["1.11.5","  Попадат в категория Q4 (последната четвърт)",0.2,{"$f":"SUM(Таблица29[[#All],[Точки]])","v":0}]
["1.11.6","  Списания със SJR ранг в Scopus, но не попадащи в Q категория ",0.1,{"$f":"SUM(Таблица30[[#All],[Точки]])","v":0}]
["1.12","Статии в списания, изброени в т.1.3 и публикации, изброени в т.1.4"]
["1.12.1","Брой реферирани научни публикации в списания, които не са включени в ERIH PLUS, Scopus или Web of Knowledge, тематични сборници, вкл. сборници отнационални и международни научни форуми.",0.02,{"$f":"SUM(Таблица31[[#All],[Точки]])","v":0}]
["1.12.2"," Бонус точки за издадени от национални академични издателства ",0.02,{"$f":"SUM(Таблица33[[#All],[Точки]])","v":0}]
["1.12.3","Бонус точки за издадени от международни академични издателства ",0.04,{"$f":"SUM(Таблица34[[#All],[Точки]])","v":0}]
["1 г. УЧЕБНИ ПОСОБИЯ, ЛЕКЦИИ и УПРАЖНЕНИЯ 6:",null,null,null,"Общ брой точки за 1 г.",{"$f":"SUM(D88)","v":0}]
["1.14","Разработка на учебници и учебни помагала",3,{"$f":"SUM(Таблица49[Точки])","v":0}]
["ДЕЙНОСТИ В ДИРЕКТНА ПОЛЗА НА ИНСТИТУТА ПО РОБОТИКА КЪМ БАН",null,null,null,"Общ брой точки за 3.9",{"$f":"SUM(D92:D101)","v":0}]
["3.9","Участие в органи на управление  на ИР-БАН и друга организационна дейност."]
["3.9 а","Участие в органи на управление на ИР-БАН."]
[null,"Директор",10,{"$f":"SUM('Дейности в директна полза на ИР'!E4)","v":0}]
[null,"Зам.Директор",9,{"$f":"SUM('Дейности в директна полза на ИР'!E5)","v":0}]
[null,"Научен секретар",8,{"$f":"SUM('Дейности в директна полза на ИР'!E6)","v":0}]
[null,"Ръководител секция",7,{"$f":"SUM('Дейности в директна полза на ИР'!E7)","v":0}]
[null,"Ръководител направление",5,{"$f":"SUM('Дейности в директна полза на ИР'!E8)","v":0}]
[null,"Председател на НС",5,{"$f":"SUM('Дейности в директна полза на ИР'!E9)","v":0}]
[null,"Председател на Общото събрание",5,{"$f":"SUM('Дейности в директна полза на ИР'!E10)","v":0}]
["3.9 б","Друга организационна дейност"]
[null,"Координатор програма ЕРАЗМУС+",1,{"$f":"SUM('Дейности в директна полза на ИР'!E12)","v":0}]
[null,"Участие в дейност вменена със заповед от ръководството на ИР-БАН",1,{"$f":"SUM('Дейности в директна полза на ИР'!E13)","v":0}]
["1.  Всяко звено в съответствие със спецификата на дейността си, може да въведе допълнителни критерии или коригиращи коефициенти на съществуващи критерии.                                                                                                                                                                                                                                                                                       2.  За  всеки  учен,  сборът  на  точките  по  допълнителните  критерии  не  трябва  да  надхвърля  40%  от  сбора  на точките  по  базисните  критерии  в  атестационната  му  карта  (предложение  на  комисията:  тази  точка  да  се включи в АК на ИР-БАН).                                                                                                                                                                                    3.  За звена, които са ангажирани в оперативна или музейна дейност, се допуска корекция до 50%."]
["Забележка: Специфичните критерии в АК на ИР-БАН са предложени, обсъдени и приети на онлай заседание (2.12.2020 г. – 11:30 часа) на комисия назначена от НС на ИР-БАН в състав: доц. д-р Александър Кръстев, акад. дтн Чавдар Руменин, доц. Август Иванов, проф. д-р Васил Тренев, проф. д-р Таньо Танев, доц. д-р Снежана Костова, проф. д-р Сия Лозанова, проф. дтн Велислава  Любенова,  проф.  д-р  Анна  Лекова,  доц.  д-р  Пламен  Райков,  доц.  д-р  Митко  Господинов,  проф.  д-р  Мая Игнатова. Отсъства: доц. Венцислав Шопов."]

{"sheet":"1-а. Научна продукция","index":1,"n_rows":79,"n_cols":21,"rows_kept":79,"cut":false,"hidden":false,"merged":[[0,0,0,3],[73,1,73,3],[62,1,62,3],[67,1,67,3],[68,1,68,3],[1,1,1,3],[42,1,42,3],[47,1,47,3],[52,1,52,3],[57,1,57,3],[37,1,37,3],[6,1,6,3],[7,1,7,3],[78,0,79,3],[12,1,12,3],[17,1,17,3],[32,1,32,3],[22,1,22,3],[27,1,27,3]]}
["Научна продукция",null,null,null,"Общ брой точки",{"$f":"SUM(D3:D78)","v":0},null,"За създаване на нов ред, избирате първия цветен празен ред от съответния критерий и натискате бутона нов ред!"]
["1.1","Брой научни публикации в издания, включени в ERIH PLUS, Scopus или Web of Science (Core Collection)"]
["Пр. № ","Описание на статията","Бонус точки","Точки за атестация "]
[null,null,{"$f":"'Атестационна карта'!$C$11","v":1},{"$f":"IF(ISBLANK(B4),,C4)","v":0}]
[null,null,{"$f":"'Атестационна карта'!$C$11","v":1},{"$f":"IF(ISBLANK(B5),,C5)","v":0}]
[]
["1.2",{"$f":"'Атестационна карта'!B12","v":"Бонус точки за статии в списания, индексирани от Web of Science (Core Collection) и SCOPUS които:"}]
["1.2.1","  - оглавяват ранглистата в съответната научна област (първите две за интердисциплинарни науки) "]
["Пр. № ","Описание на статията","Бонус точки","Точки за атестация "]
[null,null,{"$f":"'Атестационна карта'!$C$13","v":20},{"$f":"IF(ISBLANK(B10),,C10)","v":0}]
[null,null,{"$f":"'Атестационна карта'!$C$13","v":20},{"$f":"IF(ISBLANK(B11),,C11)","v":0}]
[]
["1.2.2","  - попадат в категория Q1 (първата четвърт)"]
["Пр. № ","Описание на статията","Бонус точки","Точки за атестация "]
[null,null,{"$f":"'Атестационна карта'!$C$14","v":16},{"$f":"IF(ISBLANK(B15),,C15)","v":0}]
[null,null,{"$f":"'Атестационна карта'!$C$14","v":16},{"$f":"IF(ISBLANK(B16),,C16)","v":0}]
[]
["1.2.3","  - попадат в категория Q2 (втората четвърт)"]
["Пр. № ","Описание на статията","Бонус точки","Точки за атестация "]
[null,null,{"$f":"'Атестационна карта'!$C$15","v":8},{"$f":"IF(ISBLANK(B20),,C20)","v":0}]
[null,null,{"$f":"'Атестационна карта'!$C$15","v":8},0,null,null,null,null,1,1]
[]
["1.2.4","  - попадат в категория Q3 (третата четвърт)"]
["Пр. № ","Описание на статията","Бонус точки","Точки за атестация "]
[null,null,{"$f":"'Атестационна карта'!$C$16","v":4},{"$f":"IF(ISBLANK(B25),,C25)","v":0}]
[null,null,{"$f":"'Атестационна карта'!$C$16","v":4},0,null,null,null,null,null,1,1]
[]
["1.2.5","  - попадат в категория Q4 (последната четвърт)"]
["Пр. № ","Описание на статията","Бонус точки","Точки за атестация "]
[null,null,{"$f":"'Атестационна карта'!$C$17","v":2},{"$f":"IF(ISBLANK(B30),,C30)","v":0}]
[null,null,{"$f":"'Атестационна карта'!$C$17","v":2},0,null,null,null,null,null,null,1,1]
[]
["1.2.6","  - списания със SJR ранг в Scopus, но не попадащи в Q категория "]
["Пр. № ","Описание на статията","Бонус точки","Точки за атестация "]
[null,null,{"$f":"'Атестационна карта'!$C$18","v":1},{"$f":"IF(ISBLANK(B35),,C35)","v":0}]
[null,null,{"$f":"'Атестационна карта'!$C$18","v":1},0,null,null,null,null,null,null,null,1,1]
[]
["1.3","Брой реферирани научни публикации в списания, които не са включени в ERIH PLUS, Scopus или Web of Knowledge, тематични сборници, вкл. сборници отнационални и международни научни форуми."]
["Пр. № ","Описание на статията","Бонус точки","Точки за атестация "]
[null,null,{"$f":"'Атестационна карта'!$C$20","v":0.2},{"$f":"IF(ISBLANK(B40),,C40)","v":0}]
[null,null,{"$f":"'Атестационна карта'!$C$20","v":0.2},0,null,null,null,null,null,null,null,null,1,1]
[]
["1.3.1","Бонус точки за публикации в рецензирани тематични сборници, които са издадени от национални академични издателства "]
["Пр. № ","Описание на статията","Бонус точки","Точки за атестация "]
[null,null,{"$f":"'Атестационна карта'!$C$21","v":0.2},{"$f":"IF(ISBLANK(B45),,C45)","v":0}]
[null,null,{"$f":"'Атестационна карта'!$C$21","v":0.2},0,null,null,null,null,null,null,null,null,null,null,1]
[]
["1.3.2","Бонус точки за публикации в рецензирани тематични сборници, които  са издадени от международни академични издателства "]
["Пр. № ","Описание на статията","Бонус точки","Точки за атестация "]
[null,null,{"$f":"'Атестационна карта'!$C$22","v":0.4},{"$f":"IF(ISBLANK(B50),,C50)","v":0}]
[null,null,{"$f":"'Атестационна карта'!$C$22","v":0.4},0,null,null,null,null,null,null,null,null,null,null,null,1]
[]
["1.4","Брой научни монографии"]
["Пр. № ","Описание на статията","Бонус точки","Точки за атестация "]
[null,null,{"$f":"'Атестационна карта'!$C$23","v":8},{"$f":"IF(ISBLANK(B55),,C55)","v":0}]
[null,null,{"$f":"'Атестационна карта'!$C$23","v":8},0,null,null,null,null,null,null,null,null,null,null,null,null,1]
[]
["1.4а","Бонус точки за монографии, издадени от реномирани международни издателства"]
["Пр. № ","Описание на статията","Бонус точки","Точки за атестация "]
[null,null,{"$f":"'Атестационна карта'!$C$24","v":6},{"$f":"IF(ISBLANK(B60),,C60)","v":0}]
[null,null,{"$f":"'Атестационна карта'!$C$24","v":6},0,null,null,null,null,null,null,null,null,null,null,null,null,null,1]
[]
["1.4б","Бонус точки за монографии с национално значение"]
["Пр. № ","Описание на статията","Бонус точки","Точки за атестация "]
[null,null,{"$f":"'Атестационна карта'!$C$25","v":3},{"$f":"IF(ISBLANK(B65),,C65)","v":0}]
[null,null,{"$f":"'Атестационна карта'!$C$25","v":3},0,null,null,null,null,null,null,null,null,null,null,null,null,null,null,1]
[]
["1.5","Брой патенти и полезни модели със заявители институтите на БАН:"]
["1.5.1","полезен модел "]
["Пр. № ","Описание на модела","Бонус точки","Точки за атестация "]
[null,null,{"$f":"'Атестационна карта'!$C$27","v":4},{"$f":"IF(ISBLANK(B71),,C71)","v":0}]
[null,null,{"$f":"'Атестационна карта'!$C$27","v":4},0,null,null,null,null,null,null,null,null,null,null,null,null,null,null,null,1]
[]
["1.5.2","за регистрирани патенти с патентопритежател (собственик) институтите на БАН"]
["Пр. № ","Описание на патента","Бонус точки","Точки за атестация "]
[null,null,{"$f":"'Атестационна карта'!$C$28","v":8},{"$f":"IF(ISBLANK(B76),,C76)","v":0}]
[null,null,{"$f":"'Атестационна карта'!$C$28","v":8},0,null,null,null,null,null,null,null,null,null,null,null,null,null,null,null,null,1]
[]
["Описване на Глави от монографии - ако главата в колективния труд е под 100 страници не може да се води за колективна монография.  Глава от колективен труд, книга се оценява по 1.3 от АК в таблицата, която се отнася за сборници от национални и международни форуми. Това носи 0.4 точки, ако книгата е от национално академично издателство да се добавят 0.2  бонус точки в 1.3.1, ако е в международно академично издателство да се добавят 0.4 бонус точки по  1.3.2   \nАко тази глава от колективния труд е публикувана в издание, което се открива в SCOPUS или Web of Science да получи 1 точка в атестационната карта към 1.1."]

{"sheet":"1-б. Цитирания","index":2,"n_rows":15,"n_cols":8,"rows_kept":15,"cut":false,"hidden":false,"merged":[[1,1,1,3],[6,1,6,3],[11,1,11,3],[0,0,0,3]]}
["Цитирания",null,null,null,"Общ брой точки",{"$f":"SUM(D3:D16)","v":0},null,"За създаване на нов ред, избирате първия цветен празен ред от съответния критерий и натискате бутона нов ред!"]
["1.7","Брой независими цитирания в Scopus или Web of Science (Core Collection)."]
["Статия","Описание на цитатит","Бонус точки","Точки за атестация "]
[null,null,{"$f":"'Атестационна карта'!$C$30","v":0.3},{"$f":"IF(ISBLANK(B4),,C4)","v":0}]
[null,null,{"$f":"'Атестационна карта'!$C$30","v":0.3},{"$f":"IF(ISBLANK(B5),,C5)","v":0},1]
[]
["1.7.1","Брой други доказани независими цитирания в научни издания."]
["Статия","Описание на цитатит","Бонус точки","Точки за атестация "]
[null,null,{"$f":"'Атестационна карта'!$C$31","v":0.2},{"$f":"IF(ISBLANK(B9),,C9)","v":0}]
[null,null,{"$f":"'Атестационна карта'!$C$31","v":0.2},{"$f":"IF(ISBLANK(B10),,C10)","v":0},null,1]
[]
["1.7.2","Брой доказани независими цитирания в дисертации."]
["Статия","Описание на цитатит","Бонус точки","Точки за атестация "]
[null,null,{"$f":"'Атестационна карта'!$C$32","v":0.1},{"$f":"IF(ISBLANK(B14),,C14)","v":0}]
[null,null,{"$f":"'Атестационна карта'!$C$32","v":0.1},{"$f":"IF(ISBLANK(B15),,C15)","v":0},null,null,1]

{"sheet":"2. Научен капацитет и ...","index":3,"n_rows":15,"n_cols":10,"rows_kept":15,"cut":false,"hidden":false,"merged":[[1,1,1,5],[6,1,6,5],[11,1,11,5],[0,0,0,5]]}
["НАУЧЕН КАПАЦИТЕТ И ВЪЗПРОИЗВОДСТВО НА АКАДЕМИЧНАТА ОБЩНОСТ",null,null,null,null,null,"Общ брой точки",{"$f":"SUM(F3:F16)","v":0},null,"За създаване на нов ред, избирате първия цветен празен ред от съответния критерий и натискате бутона нов ред!"]
["2.1","Научен ръководител или научен консултант на защитил докторант"]
["Титла","Име на научният ръководител или консултант ","Име на защитилия докторант","Бонус точки","Бр. научни р-л или консултанти","Т. за атестация "]
[null,null,null,{"$f":"'Атестационна карта'!$C$34","v":20},null,{"$f":"IF(ISBLANK(B4),,20)","v":0}]
[null,null,null,{"$f":"'Атестационна карта'!$C$34","v":20},null,0,1]
[]
["2.2","Придобиване на    образователната и научна степен „доктор”"]
["№","Заглавие на темата","Година на защита","Бонус точки"," ","Т. за атестация"]
[null,null,null,{"$f":"'Атестационна карта'!$C$35","v":20},null,{"$f":"IF(ISBLANK(B9),,20)","v":0}]
[null,null,null,{"$f":"'Атестационна карта'!$C$35","v":20},null,0]
[]
["2.3","Придобиване на научната степен „доктор на науките”"]
[null,"Заглавие на темата","Година на защита","Бонус точки"," ","Т. за атестация "]
[null,null,null,{"$f":"'Атестационна карта'!$C$36","v":50},null,{"$f":"IF(ISBLANK(B14),,50)","v":0}]
[null,null,null,{"$f":"'Атестационна карта'!C36","v":50},null,{"$f":"IF(ISBLANK(B15),,50)","v":0}]

{"sheet":"3. Общ. и иконом. въздействие","index":4,"n_rows":18,"n_cols":27,"rows_kept":18,"cut":false,"hidden":false,"merged":[[2,2,2,4],[2,5,2,7],[2,8,2,10],[2,11,2,13],[2,14,2,16],[0,17,0,23],[0,0,0,16],[14,2,14,4],[8,2,8,4],[1,1,1,22],[7,1,7,22],[13,1,13,22],[8,5,8,7],[14,5,14,7],[8,8,8,10],[14,8,14,10],[8,11,8,13],[14,11,14,13],[8,20,8,22],[14,20,14,22],[8,14,8,16],[14,14,14,16],[8,17,8,19],[14,17,14,19],[2,17,2,19],[2,20,2,22]]}
["ОБЩЕСТВЕНО И ИКОНОМИЧЕСКО ВЪЗДЕЙСТВИЕ ПРЕЗ ОТЧЕТНИЯ ПЕРИОД",null,null,null,null,null,null,null,null,null,null,null,null,null,null,null,null,"Общ брой точки",null,null,null,null,null,null,{"$f":"SUM(X4:X19)","v":0},null,"За създаване на нов ред, избирате първия цветен празен ред от съответния критерий и натискате бутона нов ред!"]
["3.1","Дялово разпределение на получени средства от външни източници по международни научни проекти на конкурсен принцип (РП на ЕС, НАТО,ЮНЕСКО и др.)"]
[null,"Период на проект",2022,null,null,2023,null,null,2024,null,null,2020,null,null,2019,null,null,"20..",null,null,"20.."]
[null,"Наименование на проект","Сума","Бр. уч.","Сума/бр","Сума ","Бр. уч. ","Сума/бр "," Сума"," Бр. уч."," Сума/бр"," Сума "," Бр. уч. "," Сума/бр ","Сума  ","Бр. уч.  ","Сума/бр  ","  Сума","  Бр. уч.","  Сума/бр","Сума   ","Бр. уч.   ","Сума/бр   ","Общо т. за проект"]
[null,null,null,null,{"$f":"IF(ISBLANK(Таблица53[[#This Row],[Бр. уч.]]),,Таблица53[[#This Row],[Сума]]/Таблица53[[#This Row],[Бр. уч.]])","v":0},null,null,{"$f":"IF(ISBLANK(Таблица53[[#This Row],[Бр. уч. ]]),,Таблица53[[#This Row],[Сума ]]/Таблица53[[#This Row],[Бр. уч. ]])","v":0},null,null,{"$f":"IF(ISBLANK(Таблица53[[#This Row],[ Бр. уч.]]),,Таблица53[[#This Row],[ Сума]]/Таблица53[[#This Row],[ Бр. уч.]])","v":0},null,null,{"$f":"IF(ISBLANK(Таблица53[[#This Row],[ Бр. уч. ]]),,Таблица53[[#This Row],[ Сума ]]/Таблица53[[#This Row],[ Бр. уч. ]])","v":0},null,null,{"$f":"IF(ISBLANK(Таблица53[[#This Row],[Бр. уч.  ]]),,Таблица53[[#This Row],[Сума  ]]/Таблица53[[#This Row],[Бр. уч.  ]])","v":0},null,null,{"$f":"IF(ISBLANK(Таблица53[[#This Row],[  Бр. уч.]]),,Таблица53[[#This Row],[  Сума]]/Таблица53[[#This Row],[  Бр. уч.]])","v":0},null,null,{"$f":"IF(ISBLANK(Таблица53[[#This Row],[Бр. уч.   ]]),,Таблица53[[#This Row],[Сума   ]]/Таблица53[[#This Row],[Бр. уч.   ]])","v":0},{"$f":"3*(Таблица53[[#This Row],[Сума/бр]]+Таблица53[[#This Row],[Сума/бр ]]+Таблица53[[#This Row],[ Сума/бр]]+Таблица53[[#This Row],[ Сума/бр ]]+Таблица53[[#This Row],[Сума/бр  ]]+Таблица53[[#This Row],[  Сума/бр]]+Таблица53[[#This Row],[Сума/бр   ]])/1000","v":0}]
[null,null,null,null,{"$f":"IF(ISBLANK(Таблица53[[#This Row],[Бр. уч.]]),,Таблица53[[#This Row],[Сума]]/Таблица53[[#This Row],[Бр. уч.]])","v":0},null,null,{"$f":"IF(ISBLANK(Таблица53[[#This Row],[Бр. уч. ]]),,Таблица53[[#This Row],[Сума ]]/Таблица53[[#This Row],[Бр. уч. ]])","v":0},null,null,{"$f":"IF(ISBLANK(Таблица53[[#This Row],[ Бр. уч.]]),,Таблица53[[#This Row],[ Сума]]/Таблица53[[#This Row],[ Бр. уч.]])","v":0},null,null,{"$f":"IF(ISBLANK(Таблица53[[#This Row],[ Бр. уч. ]]),,Таблица53[[#This Row],[ Сума ]]/Таблица53[[#This Row],[ Бр. уч. ]])","v":0},null,null,{"$f":"IF(ISBLANK(Таблица53[[#This Row],[Бр. уч.  ]]),,Таблица53[[#This Row],[Сума  ]]/Таблица53[[#This Row],[Бр. уч.  ]])","v":0},null,null,{"$f":"IF(ISBLANK(Таблица53[[#This Row],[  Бр. уч.]]),,Таблица53[[#This Row],[  Сума]]/Таблица53[[#This Row],[  Бр. уч.]])","v":0},null,null,{"$f":"IF(ISBLANK(Таблица53[[#This Row],[Бр. уч.   ]]),,Таблица53[[#This Row],[Сума   ]]/Таблица53[[#This Row],[Бр. уч.   ]])","v":0},{"$f":"3*(Таблица53[[#This Row],[Сума/бр]]+Таблица53[[#This Row],[Сума/бр ]]+Таблица53[[#This Row],[ Сума/бр]]+Таблица53[[#This Row],[ Сума/бр ]]+Таблица53[[#This Row],[Сума/бр  ]]+Таблица53[[#This Row],[  Сума/бр]]+Таблица53[[#This Row],[Сума/бр   ]])/1000","v":0}]
[]
["3.2","Дялово разпределение на получени средства от външни източници по научни проекти на конкурсен принцип от страната (ФНИ, НПКНИ, оперативни програми и др.)"]
[null,"Период на проект",2022,null,null,2023,null,null,2024,null,null,2020,null,null,2019,null,null,"20..",null,null,"20.."]
[null,"Наименование на проект","Сума","Бр. уч.","Сума/бр","Сума ","Бр. уч. ","Сума/бр "," Сума"," Бр. уч."," Сума/бр"," Сума "," Бр. уч. "," Сума/бр ","Сума  ","Бр. уч.  ","Сума/бр  ","  Сума","  Бр. уч.","  Сума/бр","Сума   ","Бр. уч.   ","Сума/бр   ","Общо т. за проект"]
[null,null,null,null,{"$f":"IF(ISBLANK(Таблица51[[#This Row],[Бр. уч.]]),,Таблица51[[#This Row],[Сума]]/Таблица51[[#This Row],[Бр. уч.]])","v":0},null,null,{"$f":"IF(ISBLANK(Таблица51[[#This Row],[Бр. уч. ]]),,Таблица51[[#This Row],[Сума ]]/Таблица51[[#This Row],[Бр. уч. ]])","v":0},null,null,{"$f":"IF(ISBLANK(Таблица51[[#This Row],[ Бр. уч.]]),,Таблица51[[#This Row],[ Сума]]/Таблица51[[#This Row],[ Бр. уч.]])","v":0},null,null,{"$f":"IF(ISBLANK(Таблица51[[#This Row],[ Бр. уч. ]]),,Таблица51[[#This Row],[ Сума ]]/Таблица51[[#This Row],[ Бр. уч. ]])","v":0},null,null,{"$f":"IF(ISBLANK(Таблица51[[#This Row],[Бр. уч.  ]]),,Таблица51[[#This Row],[Сума  ]]/Таблица51[[#This Row],[Бр. уч.  ]])","v":0},null,null,{"$f":"IF(ISBLANK(Таблица51[[#This Row],[  Бр. уч.]]),,Таблица51[[#This Row],[  Сума]]/Таблица51[[#This Row],[  Бр. уч.]])","v":0},null,null,{"$f":"IF(ISBLANK(Таблица51[[#This Row],[Бр. уч.   ]]),,Таблица51[[#This Row],[Сума   ]]/Таблица51[[#This Row],[Бр. уч.   ]])","v":0},{"$f":"3*(Таблица51[[#This Row],[Сума/бр]]+Таблица51[[#This Row],[Сума/бр ]]+Таблица51[[#This Row],[ Сума/бр]]+Таблица51[[#This Row],[ Сума/бр ]]+Таблица51[[#This Row],[Сума/бр  ]]+Таблица51[[#This Row],[  Сума/бр]]+Таблица51[[#This Row],[Сума/бр   ]])/1000","v":0}]
[null,null,null,null,{"$f":"IF(ISBLANK(Таблица51[[#This Row],[Бр. уч.]]),,Таблица51[[#This Row],[Сума]]/Таблица51[[#This Row],[Бр. уч.]])","v":0},null,null,{"$f":"IF(ISBLANK(Таблица51[[#This Row],[Бр. уч. ]]),,Таблица51[[#This Row],[Сума ]]/Таблица51[[#This Row],[Бр. уч. ]])","v":0},null,null,{"$f":"IF(ISBLANK(Таблица51[[#This Row],[ Бр. уч.]]),,Таблица51[[#This Row],[ Сума]]/Таблица51[[#This Row],[ Бр. уч.]])","v":0},null,null,{"$f":"IF(ISBLANK(Таблица51[[#This Row],[ Бр. уч. ]]),,Таблица51[[#This Row],[ Сума ]]/Таблица51[[#This Row],[ Бр. уч. ]])","v":0},null,null,{"$f":"IF(ISBLANK(Таблица51[[#This Row],[Бр. уч.  ]]),,Таблица51[[#This Row],[Сума  ]]/Таблица51[[#This Row],[Бр. уч.  ]])","v":0},null,null,{"$f":"IF(ISBLANK(Таблица51[[#This Row],[  Бр. уч.]]),,Таблица51[[#This Row],[  Сума]]/Таблица51[[#This Row],[  Бр. уч.]])","v":0},null,null,{"$f":"IF(ISBLANK(Таблица51[[#This Row],[Бр. уч.   ]]),,Таблица51[[#This Row],[Сума   ]]/Таблица51[[#This Row],[Бр. уч.   ]])","v":0},{"$f":"3*(Таблица51[[#This Row],[Сума/бр]]+Таблица51[[#This Row],[Сума/бр ]]+Таблица51[[#This Row],[ Сума/бр]]+Таблица51[[#This Row],[ Сума/бр ]]+Таблица51[[#This Row],[Сума/бр  ]]+Таблица51[[#This Row],[  Сума/бр]]+Таблица51[[#This Row],[Сума/бр   ]])/1000","v":0}]
[]
["3.3","Дялово разпределение на получени средства от други източници, които не са стопанска дейност"]
[null,"Период на проект",2022,null,null,2023,null,null,2024,null,null,2020,null,null,2019,null,null,"20..",null,null,"20.."]
[null,"Наименование на проект","Сума","Бр. уч.","Сума/бр","Сума ","Бр. уч. ","Сума/бр "," Сума"," Бр. уч."," Сума/бр"," Сума "," Бр. уч. "," Сума/бр ","Сума  ","Бр. уч.  ","Сума/бр  ","  Сума","  Бр. уч.","  Сума/бр","Сума   ","Бр. уч.   ","Сума/бр   ","Общо т. за проект"]
[null,null,null,null,{"$f":"IF(ISBLANK(Таблица52[[#This Row],[Бр. уч.]]),,Таблица52[[#This Row],[Сума]]/Таблица52[[#This Row],[Бр. уч.]])","v":0},null,null,{"$f":"IF(ISBLANK(Таблица52[[#This Row],[Бр. уч. ]]),,Таблица52[[#This Row],[Сума ]]/Таблица52[[#This Row],[Бр. уч. ]])","v":0},null,null,{"$f":"IF(ISBLANK(Таблица52[[#This Row],[ Бр. уч.]]),,Таблица52[[#This Row],[ Сума]]/Таблица52[[#This Row],[ Бр. уч.]])","v":0},null,null,{"$f":"IF(ISBLANK(Таблица52[[#This Row],[ Бр. уч. ]]),,Таблица52[[#This Row],[ Сума ]]/Таблица52[[#This Row],[ Бр. уч. ]])","v":0},null,null,{"$f":"IF(ISBLANK(Таблица52[[#This Row],[Бр. уч.  ]]),,Таблица52[[#This Row],[Сума  ]]/Таблица52[[#This Row],[Бр. уч.  ]])","v":0},null,null,{"$f":"IF(ISBLANK(Таблица52[[#This Row],[  Бр. уч.]]),,Таблица52[[#This Row],[  Сума]]/Таблица52[[#This Row],[  Бр. уч.]])","v":0},null,null,{"$f":"IF(ISBLANK(Таблица52[[#This Row],[Бр. уч.   ]]),,Таблица52[[#This Row],[Сума   ]]/Таблица52[[#This Row],[Бр. уч.   ]])","v":0},{"$f":"3*(Таблица52[[#This Row],[Сума/бр]]+Таблица52[[#This Row],[Сума/бр ]]+Таблица52[[#This Row],[ Сума/бр]]+Таблица52[[#This Row],[ Сума/бр ]]+Таблица52[[#This Row],[Сума/бр  ]]+Таблица52[[#This Row],[  Сума/бр]]+Таблица52[[#This Row],[Сума/бр   ]])/1000","v":0}]
[null,null,null,null,{"$f":"IF(ISBLANK(Таблица52[[#This Row],[Бр. уч.]]),,Таблица52[[#This Row],[Сума]]/Таблица52[[#This Row],[Бр. уч.]])","v":0},null,null,{"$f":"IF(ISBLANK(Таблица52[[#This Row],[Бр. уч. ]]),,Таблица52[[#This Row],[Сума ]]/Таблица52[[#This Row],[Бр. уч. ]])","v":0},null,null,{"$f":"IF(ISBLANK(Таблица52[[#This Row],[ Бр. уч.]]),,Таблица52[[#This Row],[ Сума]]/Таблица52[[#This Row],[ Бр. уч.]])","v":0},null,null,{"$f":"IF(ISBLANK(Таблица52[[#This Row],[ Бр. уч. ]]),,Таблица52[[#This Row],[ Сума ]]/Таблица52[[#This Row],[ Бр. уч. ]])","v":0},null,null,{"$f":"IF(ISBLANK(Таблица52[[#This Row],[Бр. уч.  ]]),,Таблица52[[#This Row],[Сума  ]]/Таблица52[[#This Row],[Бр. уч.  ]])","v":0},null,null,{"$f":"IF(ISBLANK(Таблица52[[#This Row],[  Бр. уч.]]),,Таблица52[[#This Row],[  Сума]]/Таблица52[[#This Row],[  Бр. уч.]])","v":0},null,null,{"$f":"IF(ISBLANK(Таблица52[[#This Row],[Бр. уч.   ]]),,Таблица52[[#This Row],[Сума   ]]/Таблица52[[#This Row],[Бр. уч.   ]])","v":0},{"$f":"3*(Таблица52[[#This Row],[Сума/бр]]+Таблица52[[#This Row],[Сума/бр ]]+Таблица52[[#This Row],[ Сума/бр]]+Таблица52[[#This Row],[ Сума/бр ]]+Таблица52[[#This Row],[Сума/бр  ]]+Таблица52[[#This Row],[  Сума/бр]]+Таблица52[[#This Row],[Сума/бр   ]])/1000","v":0}]

{"sheet":"Дейности 3.4 - 3.15","index":5,"n_rows":70,"n_cols":8,"rows_kept":70,"cut":false,"hidden":false,"merged":[[61,1,61,4],[0,0,0,3],[1,1,1,4],[66,1,66,4],[11,1,11,4],[41,1,41,4],[46,1,46,4],[16,1,16,4],[21,1,21,4],[26,1,26,4],[31,1,31,4],[36,1,36,4],[6,1,6,4],[51,1,51,4],[56,1,56,4]]}
["ДЕЙНОСТИ В ДИРЕКТНА ПОЛЗА НА ИНСТИТУЦИИ И ОРГАНИ НА ОБЩИНИТЕ, ДЪРЖАВАТА И ЕС",null,null,null,"Общ брой точки",{"$f":"SUM(B3:E71)","v":0},null,"За създаване на нов ред, избирате първия цветен празен ред от съответния критерий и натискате бутона нов ред!"]
["3.4","Участие в изпълнението на важни научни проекти, целево финансирани от държавата към бюджетната субсидия."]
[null,"Пр. №","Година ","Наименование на проекта","Точки"]
[null,null,null,null,{"$f":"IF(ISBLANK(Таблица35[[#This Row],[Наименование на проекта]]),,5)","v":0}]
[null,null,null,null,{"$f":"IF(ISBLANK(Таблица35[[#This Row],[Наименование на проекта]]),,5)","v":0}]
[]
["3.5","Участие в изготвяне на национални документи от стратегическо значение."]
[null,"Пр. №","Година ","Наименование на документ","Точки"]
[null,null,null,null,{"$f":"IF(ISBLANK(Таблица36[[#This Row],[Наименование на документ]]),,2)","v":0}]
[null,null,null,null,{"$f":"IF(ISBLANK(Таблица36[[#This Row],[Наименование на документ]]),,2)","v":0}]
[]
["3.6","Организиране на международни научни форуми."]
[null,"Пр. №","Година ","Наименование на форума","Точки"]
[null,null,null,null,{"$f":"IF(ISBLANK(Таблица37[[#This Row],[Наименование на форума]]),,5)","v":0}]
[null,null,null,null,{"$f":"IF(ISBLANK(Таблица37[[#This Row],[Наименование на форума]]),,5)","v":0}]
[]
["3.7","Организиране на национални научни форуми, вкл. с международно участие."]
[null,"Пр. №","Година ","Наименование на форума","Точки"]
[null,null,null,null,{"$f":"IF(ISBLANK(Таблица38[[#This Row],[Наименование на форума]]),,2.5)","v":0}]
[null,null,null,null,{"$f":"IF(ISBLANK(Таблица38[[#This Row],[Наименование на форума]]),,2.5)","v":0}]
[]
["3.8","Организиране на изложби в чужбина "]
[null,"Пр. №","Година","Наименование на изложбата","Точки"]
[null,null,null,null,{"$f":"IF(ISBLANK(Таблица39[[#This Row],[Наименование на изложбата]]),,20)","v":0}]
[null,null,null,null,{"$f":"IF(ISBLANK(Таблица39[[#This Row],[Наименование на изложбата]]),,20)","v":0}]
[]
["3.8.1","Организиране на изложби в страната "]
[null,"Пр. №","Година","Наименование на изложбата","Точки"]
[null,null,null,null,{"$f":"IF(ISBLANK(Таблица40[[#This Row],[Наименование на изложбата]]),,10)","v":0}]
[null,null,null,null,{"$f":"IF(ISBLANK(Таблица40[[#This Row],[Наименование на изложбата]]),,10)","v":0}]
[]
["3.8.2","Организиране на ателиета и творчески работилници"]
[null,"Пр. №","Година","Наименование на ателие и/или творческа работилница","Точки"]
[null,null,null,null,{"$f":"IF(ISBLANK(Таблица41[[#This Row],[Наименование на ателие и/или творческа работилница]]),,8)","v":0}]
[null,null,null,null,{"$f":"IF(ISBLANK(Таблица41[[#This Row],[Наименование на ателие и/или творческа работилница]]),,8)","v":0}]
[]
["3.9","Участие в органи на управление на БАН и/или друга организационна дейност."]
[null,"Пр. №","Година","Описание на участие","Точки"]
[null,null,null,null,{"$f":"IF(ISBLANK(Таблица42[[#This Row],[Описание на участие]]),,10)","v":0}]
[null,null,null,null,{"$f":"IF(ISBLANK(Таблица42[[#This Row],[Описание на участие]]),,10)","v":0}]
[]
["3.10","Експертни доклади по писмена заявка от международни институции и органи (ЕС, ЮНЕСКО и др.), които не се заплащат."]
[null,"Пр. №","Година","Наименование доклад","Точки"]
[null,null,null,null,{"$f":"IF(ISBLANK(Таблица43[[#This Row],[Наименование доклад]]),,10)","v":0}]
[null,null,null,null,{"$f":"IF(ISBLANK(Таблица43[[#This Row],[Наименование доклад]]),,10)","v":0}]
[]
["3.11","Експертни доклади по писмена заявка от държавни и общински институции и органи, които не се заплащат."]
[null,"Пр. №","Година","Наименование доклад","Точки"]
[null,null,null,null,{"$f":"IF(ISBLANK(Таблица44[[#This Row],[Наименование доклад]]),,2)","v":0}]
[null,null,null,null,{"$f":"IF(ISBLANK(Таблица44[[#This Row],[Наименование доклад]]),,2)","v":0}]
[]
["3.12","Експертни становища за изпълнителната, законодателната, съдебната и местна власт, които не се заплащат."]
[null,"Пр. №","Година","Наименование становище","Точки"]
[null,null,null,null,{"$f":"IF(ISBLANK(Таблица45[[#This Row],[Наименование становище]]),,1)","v":0}]
[null,null,null,null,{"$f":"IF(ISBLANK(Таблица45[[#This Row],[Наименование становище]]),,1)","v":0}]
[]
["3.13","Изработване на уникални апарати за участие в международни програми, които не са икономическа дейност."]
[null,"Пр. №","Година","Име на междунарадна програма","Точки"]
[null,null,null,null,{"$f":"IF(ISBLANK(Таблица46[[#This Row],[Име на междунарадна програма]]),,10)","v":0}]
[null,null,null,null,{"$f":"IF(ISBLANK(Таблица46[[#This Row],[Име на междунарадна програма]]),,10)","v":0}]
[]
["3.14","Образователни курсове и семинари (не по-малко от 30 уч. часа), които са организирани от институтите на БАН."]
[null,"Пр. №","Година","Наименование на курс и/или семинар","Точки"]
[null,null,null,null,{"$f":"IF(ISBLANK(Таблица47[[#This Row],[Наименование на курс и/или семинар]]),,5)","v":0}]
[null,null,null,null,{"$f":"IF(ISBLANK(Таблица47[[#This Row],[Наименование на курс и/или семинар]]),,5)","v":0}]
[]
["3.15","  Публични  лекции  и  медийни  изяви  на  учения  в  качеството  му  на  експерт  в научната област на съответния институт. "]
[null,"Пр. №","Година","Местоположение на изява","Точки"]
[null,null,null,null,{"$f":"IF(ISBLANK(Таблица48[[#This Row],[Местоположение на изява]]),,1)","v":0}]
[null,null,null,null,{"$f":"IF(ISBLANK(Таблица48[[#This Row],[Местоположение на изява]]),,1)","v":0}]

{"sheet":"II. Специфични критерии","index":6,"n_rows":63,"n_cols":15,"rows_kept":63,"cut":false,"hidden":false,"merged":[[1,1,1,3],[0,4,1,5],[0,6,1,6],[0,8,1,8],[0,7,1,7],[0,0,0,3],[59,1,59,3],[54,1,54,3],[49,1,49,3],[48,1,48,3],[43,1,43,3],[38,1,38,3],[28,1,28,3],[33,1,33,3],[2,1,2,3],[7,1,7,3],[12,1,12,3],[17,1,17,3],[18,1,18,3],[23,1,23,3]]}
["II.        СПЕЦИФИЧНИ КРИТЕРИИ",null,null,null,"Общ брой точки",null,{"$f":"SUM(D4:D64)","v":0},null,"За създаване на нов ред, избирате първия цветен празен ред от съответния критерий и натискате бутона нов ред!"]
["1 в.","РЕЦЕНЗИИ на 6:"]
["1.9","Монографии"]
[null,"Пр. №","Описание на монография","Точки",null,null,null,null,null,null,null,null,null,null,0.6]
[null,null,null,{"$f":"IF(ISBLANK(Таблица23[[#This Row],[Описание на монография]]),,0.8)","v":0}]
[null,null,null,{"$f":"IF(ISBLANK(Таблица23[[#This Row],[Описание на монография]]),,0.8)","v":0}]
[]
["1.9а","Бонус точки за монографии, издадени от реномирани международни издателства"]
[null,"Пр. №","Описание на монография","Точки"]
[null,null,null,{"$f":"IF(ISBLANK(Таблица246[[#This Row],[Описание на монография]]),,0.6)","v":0}]
[null,null,null,{"$f":"IF(ISBLANK(Таблица246[[#This Row],[Описание на монография]]),,0.6)","v":0}]
[]
["1.9б","Бонус точки за монографии с национално значение"]
[null,"Пр. №","Описание на монография","Точки"]
[null,null,null,{"$f":"IF(ISBLANK(Таблица24[[#This Row],[Описание на монография]]),,0.3)","v":0}]
[null,null,null,{"$f":"IF(ISBLANK(Таблица24[[#This Row],[Описание на монография]]),,0.3)","v":0}]
[]
["1.11","Статии и списания, изброени в т.1.2"]
["1.11.1","Оглавяват ранглистата в съответната научна област (първите две за интердисциплинарни науки) "]
[null,"Пр. №","Описание на статия","Точки"]
[null,null,null,{"$f":"IF(ISBLANK(Таблица25[[#This Row],[Описание на статия]]),,2)","v":0}]
[null,null,null,{"$f":"IF(ISBLANK(Таблица25[[#This Row],[Описание на статия]]),,2)","v":0}]
[]
["1.11.2","Попадат в категория Q1 (първата четвърт)"]
[null,"Пр. №","Описание на статия","Точки"]
[null,null,null,{"$f":"IF(ISBLANK(Таблица26[[#This Row],[Описание на статия]]),,1.6)","v":0}]
[null,null,null,{"$f":"IF(ISBLANK(Таблица26[[#This Row],[Описание на статия]]),,1.6)","v":0}]
[]
["1.11.3","Попадат в категория Q2 (втората четвърт)"]
[null,"Пр. №","Описание на статия","Точки"]
[null,null,null,{"$f":"IF(ISBLANK(Таблица27[[#This Row],[Описание на статия]]),,0.8)","v":0}]
[null,null,null,{"$f":"IF(ISBLANK(Таблица27[[#This Row],[Описание на статия]]),,0.8)","v":0}]
[]
["1.11.4","Попадат в категория Q3 (третата четвърт)"]
[null,"Пр. №","Описание на статия","Точки"]
[null,null,null,{"$f":"IF(ISBLANK(Таблица28[[#This Row],[Описание на статия]]),,0.4)","v":0}]
[null,null,null,{"$f":"IF(ISBLANK(Таблица28[[#This Row],[Описание на статия]]),,0.4)","v":0}]
[]
["1.11.5","Попадат в категория Q4 (последната четвърт)"]
[null,"Пр. №","Описание на статия","Точки"]
[null,null,null,{"$f":"IF(ISBLANK(Таблица29[[#This Row],[Описание на статия]]),,0.2)","v":0}]
[null,null,null,{"$f":"IF(ISBLANK(Таблица29[[#This Row],[Описание на статия]]),,0.2)","v":0}]
[]
["1.11.6","Списания със SJR ранг в Scopus, но не попадащи в Q категория "]
[null,"Пр. №","Описание на статия","Точки"]
[null,null,null,{"$f":"IF(ISBLANK(Таблица30[[#This Row],[Описание на статия]]),,0.1)","v":0}]
[null,null,null,{"$f":"IF(ISBLANK(Таблица30[[#This Row],[Описание на статия]]),,0.1)","v":0}]
[]
["1.12","Статии в списания, изброени в т.1.3 и публикации, изброени в т.1.4"]
["1.12.1","Брой реферирани научни публикации в списания, които не са включени в ERIH PLUS, Scopus или Web of Knowledge, тематични сборници, вкл. сборници отнационални и международни научни форуми."]
[null,"Пр. №","Описание на публикацията","Точки"]
[null,null,null,{"$f":"IF(ISBLANK(Таблица31[[#This Row],[Описание на публикацията]]),,0.02)","v":0}]
[null,null,null,{"$f":"IF(ISBLANK(Таблица31[[#This Row],[Описание на публикацията]]),,0.02)","v":0}]
[]
["1.12.2"," Бонус точки за издадени от национални академични издателства "]
[null,"Пр. №","Описание на публикацията","Точки"]
[null,null,null,{"$f":"IF(ISBLANK(Таблица33[[#This Row],[Описание на публикацията]]),,0.02)","v":0}]
[null,null,null,{"$f":"IF(ISBLANK(Таблица33[[#This Row],[Описание на публикацията]]),,0.02)","v":0}]
[]
["1.12.3"," Бонус точки за издадени от национални академични издателства "]
[null,"Пр. №","Описание на публикацията","Точки"]
[null,null,null,{"$f":"IF(ISBLANK(Таблица34[[#This Row],[Описание на публикацията]]),,0.04)","v":0}]
[null,null,null,{"$f":"IF(ISBLANK(Таблица34[[#This Row],[Описание на публикацията]]),,0.04)","v":0}]

{"sheet":"1 г. Уч. пособия и упр. 6","index":7,"n_rows":9,"n_cols":8,"rows_kept":9,"cut":false,"hidden":false,"merged":[[1,1,1,3],[0,1,0,2]]}
[" 1 г. ","УЧЕБНИ ПОСОБИЯ, ЛЕКЦИИ и УПРАЖНЕНИЯ 6",null,null,"Общ брой точки",{"$f":"SUM(D3:D10)","v":0},null,"За създаване на нов ред, избирате първия цветен празен ред от съответния критерий и натискате бутона нов ред!"]
["1.14","Разработка на учебници и учебни помагала"]
["Пр. №","Година","Описание","Точки"]
[null,null,null,{"$f":"IF(ISBLANK(C4),,3)","v":0}]
[null,null,null,0]
[null,null,null,0]
[null,null,null,0]
[null,null,null,0]
[null,null,null,0]

{"sheet":"Дейности в директна полза на ИР","index":8,"n_rows":297,"n_cols":7,"rows_kept":297,"cut":false,"hidden":false,"merged":[[0,0,0,1],[2,1,2,4],[1,1,1,4],[10,1,10,4],[2,0,9,0],[10,0,12,0],[12,1,12,2]]}
["ДЕЙНОСТИ В ДИРЕКТНА ПОЛЗА НА ИНСТИТУТА ПО РОБОТИКА КЪМ БАН",null,"Бр. г.","Точки за 1 г./ 1 дейност","Общо","Общ брой точки",{"$f":"SUM(E4:E13)","v":0}]
["3.9","Участие в органи на управление  на ИР-БАН и друга организационна дейност."]
["3.9 а","Участие в органи на управление на ИР-БАН"]
[null,"Директор",null,10,{"$f":"C4*D4","v":0}]
[null,"Зам.Директор",null,9,0]
[null,"Научен секретар",null,8,0]
[null,"Ръководител секция",null,7,0]
[null,"Ръководител направление",null,5,0]
[null,"Председател на НС",null,5,0]
[null,"Председател на Общото събрание",null,5,0]
["3.9 б","Друга организационна дейност"]
[null,"Координатор програма ЕРАЗМУС+",null,1,{"$f":"C12*D12","v":0}]
[null,"Участие в дейност вменена със заповед от ръководството на ИР-БАН",null,1,{"$f":"SUM(C15:C297)","v":0}]
["Пр. №","Описание на дейност","Точки от дейност"]
[null,null,{"$f":"IF(ISBLANK(B15),,1)","v":0}]
[null,null,0]
[null,null,0]
[null,null,0]
[null,null,0]
[null,null,0]
[null,null,0]
[null,null,0]
[null,null,0]
[null,null,0]
[null,null,0]
[null,null,0]
[null,null,0]
[null,null,0]
[null,null,0]
[null,null,0]
[null,null,0]
[null,null,0]
[null,null,0]
[null,null,0]
[null,null,0]
[null,null,0]
[null,null,0]
[null,null,0]
[null,null,0]
[null,null,0]
[null,null,0]
[null,null,0]
[null,null,0]
[null,null,0]
[null,null,0]
[null,null,0]
[null,null,0]
[null,null,0]
[null,null,0]
[null,null,0]
[null,null,0]
[null,null,0]
[null,null,0]
[null,null,0]
[null,null,0]
[null,null,0]
[null,null,0]
[null,null,0]
[null,null,0]
[null,null,0]
[null,null,0]
[null,null,0]
[null,null,0]
[null,null,0]
[null,null,0]
[null,null,0]
[null,null,0]
[null,null,0]
[null,null,0]
[null,null,0]
[null,null,0]
[null,null,0]
[null,null,0]
[null,null,0]
[null,null,0]
[null,null,{"$f":"IF(ISBLANK(B76),,1)","v":0}]
[null,null,0]
[null,null,0]
[null,null,0]
[null,null,0]
[null,null,0]
[null,null,0]
[null,null,0]
[null,null,0]
[null,null,0]
[null,null,0]
[null,null,0]
[null,null,0]
[null,null,0]
[null,null,0]
[null,null,0]
[null,null,0]
[null,null,0]
[null,null,0]
[null,null,0]
[null,null,0]
[null,null,0]
[null,null,0]
[null,null,0]
[null,null,0]
[null,null,0]
[null,null,0]
[null,null,0]
[null,null,0]
[null,null,0]
[null,null,0]
[null,null,0]
[null,null,0]
[null,null,0]
[null,null,0]
[null,null,0]
[null,null,0]
[null,null,0]
[null,null,0]
[null,null,0]
[null,null,0]
[null,null,0]
[null,null,0]
[null,null,0]
[null,null,0]
[null,null,0]
[null,null,0]
[null,null,0]
[null,null,0]
[null,null,0]
[null,null,0]
[null,null,0]
[null,null,0]
[null,null,0]
[null,null,0]
[null,null,0]
[null,null,0]
[null,null,0]
[null,null,0]
[null,null,0]
[null,null,0]
[null,null,0]
[null,null,0]
[null,null,0]
[null,null,{"$f":"IF(ISBLANK(B140),,1)","v":0}]
[null,null,0]
[null,null,0]
[null,null,0]
[null,null,0]
[null,null,0]
[null,null,0]
[null,null,0]
[null,null,0]
[null,null,0]
[null,null,0]
[null,null,0]
[null,null,0]
[null,null,0]
[null,null,0]
[null,null,0]
[null,null,0]
[null,null,0]
[null,null,0]
[null,null,0]
[null,null,0]
[null,null,0]
[null,null,0]
[null,null,0]
[null,null,0]
[null,null,0]
[null,null,0]
[null,null,0]
[null,null,0]
[null,null,0]
[null,null,0]
[null,null,0]
[null,null,0]
[null,null,0]
[null,null,0]
[null,null,0]
[null,null,0]
[null,null,0]
[null,null,0]
[null,null,0]
[null,null,0]
[null,null,0]
[null,null,0]
[null,null,0]
[null,null,0]
[null,null,0]
[null,null,0]
[null,null,0]
[null,null,0]
[null,null,0]
[null,null,0]
[null,null,0]
[null,null,0]
[null,null,0]
[null,null,0]
[null,null,0]
[null,null,0]
[null,null,0]
[null,null,0]
[null,null,0]
[null,null,0]
[null,null,0]
[null,null,0]
[null,null,0]
[null,null,{"$f":"IF(ISBLANK(B204),,1)","v":0}]
[null,null,0]
[null,null,0]
[null,null,0]
[null,null,0]
[null,null,0]
[null,null,0]
[null,null,0]
[null,null,0]
[null,null,0]
[null,null,0]
[null,null,0]
[null,null,0]
[null,null,0]
[null,null,0]
[null,null,0]
[null,null,0]
[null,null,0]
[null,null,0]
[null,null,0]
[null,null,0]
[null,null,0]
[null,null,0]
[null,null,0]
[null,null,0]
[null,null,0]
[null,null,0]
[null,null,0]
[null,null,0]
[null,null,0]
[null,null,0]
[null,null,0]
[null,null,0]
[null,null,0]
[null,null,0]
[null,null,0]
[null,null,0]
[null,null,0]
[null,null,0]
[null,null,0]
[null,null,0]
[null,null,0]
[null,null,0]
[null,null,0]
[null,null,0]
[null,null,0]
[null,null,0]
[null,null,0]
[null,null,0]
[null,null,0]
[null,null,0]
[null,null,0]
[null,null,0]
[null,null,0]
[null,null,0]
[null,null,0]
[null,null,0]
[null,null,0]
[null,null,0]
[null,null,0]
[null,null,0]
[null,null,0]
[null,null,0]
[null,null,0]
[null,null,{"$f":"IF(ISBLANK(B268),,1)","v":0}]
[null,null,0]
[null,null,0]
[null,null,0]
[null,null,0]
[null,null,0]
[null,null,0]
[null,null,0]
[null,null,0]
[null,null,0]
[null,null,0]
[null,null,0]
[null,null,0]
[null,null,0]
[null,null,0]
[null,null,0]
[null,null,0]
[null,null,0]
[null,null,0]
[null,null,0]
[null,null,0]
[null,null,0]
[null,null,0]
[null,null,0]
[null,null,0]
[null,null,0]
[null,null,0]
[null,null,0]
[null,null,0]
[null,null,0]